[Event "Titled Tuesday Blitz February 28 Early 2023"]
[White "Trent, Lawrence"]
[Black "Rosenberg, Evan S"]
[WhiteFideId "408638"]
[BlackFideId "2019299"]
[WhiteElo "2458"]
[BlackElo "2445"]
[Result "1-0"]
[Round "05"]
[TimeControl "180+2"]
[Date "2023.02.28"]
[WhiteClock "0:00:38"]
[BlackClock "0:00:01"]

1. e4 {[%clk 0:03:00]}  e5 {[%clk 0:02:58]} 2. Nf3 {[%clk 0:02:55]}  Nc6 {[%clk 0:02:58]} 3. Nc3 {[%clk 0:02:54]}  Nf6 {[%clk 0:02:58]} 4. d4 {[%clk 0:02:55]}  exd4 {[%clk 0:02:58]} 5. Nd5 {[%clk 0:02:55]}  h6 {[%clk 0:02:44]} 6. Bc4 {[%clk 0:02:53]}  Bc5 {[%clk 0:02:38]} 7. O-O {[%clk 0:02:47]}  O-O {[%clk 0:02:38]} 8. e5 {[%clk 0:02:29]}  Nxd5 {[%clk 0:02:22]} 9. Bxd5 {[%clk 0:02:30]}  d6 {[%clk 0:02:19]} 10. Re1 {[%clk 0:02:22]}  dxe5 {[%clk 0:02:17]} 11. Bxc6 {[%clk 0:02:22]}  bxc6 {[%clk 0:02:17]} 12. Nxe5 {[%clk 0:02:23]}  Qd5 {[%clk 0:02:03]} 13. c4 {[%clk 0:02:11]}  dxc3 {[%clk 0:02:02]} 14. bxc3 {[%clk 0:02:10]}  Re8 {[%clk 0:01:19]} 15. Bf4 {[%clk 0:02:07]}  Bf5 {[%clk 0:01:08]} 16. c4 {[%clk 0:02:04]}  Qxd1 {[%clk 0:01:03]} 17. Raxd1 {[%clk 0:02:03]}  Rab8 {[%clk 0:00:46]} 18. Nxc6 {[%clk 0:01:54]}  Rxe1+ {[%clk 0:00:46]} 19. Rxe1 {[%clk 0:01:54]}  Rb2 {[%clk 0:00:46]} 20. Be3 {[%clk 0:01:55]}  Bxe3 {[%clk 0:00:43]} 21. fxe3 {[%clk 0:01:53]}  Be4 {[%clk 0:00:41]} 22. Nxa7 {[%clk 0:01:53]}  Rxg2+ {[%clk 0:00:40]} 23. Kf1 {[%clk 0:01:54]}  Rxa2 {[%clk 0:00:39]} 24. Nb5 {[%clk 0:01:53]}  Rxh2 {[%clk 0:00:32]} 25. Nxc7 {[%clk 0:01:46]}  Rc2 {[%clk 0:00:30]} 26. Nd5 {[%clk 0:01:42]}  Rxc4 {[%clk 0:00:24]} 27. Nf4 {[%clk 0:01:42]}  Rc2 {[%clk 0:00:22]} 28. Ra1 {[%clk 0:01:41]}  g5 {[%clk 0:00:16]} 29. Nh5 {[%clk 0:01:42]}  Rc6 {[%clk 0:00:09]} 30. Ra7 {[%clk 0:01:37]}  Bg6 {[%clk 0:00:08]} 31. Ng3 {[%clk 0:01:37]}  h5 {[%clk 0:00:07]} 32. Ra5 {[%clk 0:01:36]}  h4 {[%clk 0:00:05]} 33. Ne2 {[%clk 0:01:36]}  Rf6+ {[%clk 0:00:04]} 34. Kg1 {[%clk 0:01:29]}  g4 {[%clk 0:00:04]} 35. Nf4 {[%clk 0:01:29]}  h3 {[%clk 0:00:03]} 36. Kh2 {[%clk 0:01:29]}  Be4 {[%clk 0:00:02]} 37. Rg5+ {[%clk 0:01:28]}  Kf8 {[%clk 0:00:02]} 38. Rxg4 {[%clk 0:01:29]}  Bf5 {[%clk 0:00:02]} 39. Rg5 {[%clk 0:01:29]}  Be6 {[%clk 0:00:02]} 40. Rh5 {[%clk 0:01:25]}  Ke7 {[%clk 0:00:02]} 41. Kg3 {[%clk 0:01:23]}  Rf5 {[%clk 0:00:02]} 42. Rh6 {[%clk 0:01:21]}  Rg5+ {[%clk 0:00:02]} 43. Kf3 {[%clk 0:01:21]}  Rg1 {[%clk 0:00:02]} 44. Ke4 {[%clk 0:01:17]}  Re1 {[%clk 0:00:01]} 45. Kd4 {[%clk 0:01:15]}  Ra1 {[%clk 0:00:01]} 46. Ke4 {[%clk 0:01:11]}  Ra2 {[%clk 0:00:01]} 47. Rh7 {[%clk 0:01:06]}  h2 {[%clk 0:00:01]} 48. Kf3 {[%clk 0:01:03]}  Kf6 {[%clk 0:00:01]} 49. e4 {[%clk 0:00:57]}  Bd7 {[%clk 0:00:01]} 50. Kg3 {[%clk 0:00:49]}  Bc6 {[%clk 0:00:01]} 51. Rh6+ {[%clk 0:00:47]}  Ke5 {[%clk 0:00:01]} 52. Nd3+ {[%clk 0:00:38]}  Kxe4 {[%clk 0:00:01]} 53. Nb4 {[%clk 0:00:38]}  Ra3+ {[%clk 0:00:01]} 54. Kxh2 {[%clk 0:00:38]} 1-0


[Site "https://www.chess.com"]

[Event "Titled Tuesday Blitz February 28 Early 2023"]
[White "Sreyas Payyappat"]
[Black "Jakubowski, Krzysztof"]
[WhiteFideId "46674969"]
[BlackFideId "1112848"]
[WhiteElo "2083"]
[BlackElo "2359"]
[Result "0-1"]
[Round "05"]
[TimeControl "180+2"]
[Date "2023.02.28"]
[WhiteClock "0:00:10"]
[BlackClock "0:00:42"]

1. e4 {[%clk 0:03:00]}  c5 {[%clk 0:02:58]} 2. Nf3 {[%clk 0:03:00]}  e6 {[%clk 0:02:58]} 3. d4 {[%clk 0:03:01]}  cxd4 {[%clk 0:02:58]} 4. Nxd4 {[%clk 0:03:02]}  Nc6 {[%clk 0:02:58]} 5. Nc3 {[%clk 0:03:01]}  Qc7 {[%clk 0:02:57]} 6. Be3 {[%clk 0:03:01]}  a6 {[%clk 0:02:56]} 7. Bd3 {[%clk 0:03:01]}  Nf6 {[%clk 0:02:56]} 8. O-O {[%clk 0:03:02]}  Ne5 {[%clk 0:02:53]} 9. h3 {[%clk 0:02:54]}  Bc5 {[%clk 0:02:52]} 10. f4 {[%clk 0:02:53]}  d6 {[%clk 0:02:51]} 11. Qe2 {[%clk 0:02:38]}  Ng6 {[%clk 0:02:43]} 12. Rad1 {[%clk 0:02:25]}  Bd7 {[%clk 0:02:36]} 13. Nb3 {[%clk 0:02:18]}  Bxe3+ {[%clk 0:02:32]} 14. Qxe3 {[%clk 0:02:19]}  e5 {[%clk 0:02:25]} 15. f5 {[%clk 0:02:12]}  Nf4 {[%clk 0:02:23]} 16. g3 {[%clk 0:01:50]}  Nxd3 {[%clk 0:02:13]} 17. Qxd3 {[%clk 0:01:51]}  Bc6 {[%clk 0:02:05]} 18. Qxd6 {[%clk 0:01:29]}  Qxd6 {[%clk 0:02:04]} 19. Rxd6 {[%clk 0:01:30]}  Ke7 {[%clk 0:02:03]} 20. Rfd1 {[%clk 0:01:19]}  Rac8 {[%clk 0:01:51]} 21. g4 {[%clk 0:01:03]}  Nxe4 {[%clk 0:01:39]} 22. Nxe4 {[%clk 0:01:01]}  Bxe4 {[%clk 0:01:38]} 23. c3 {[%clk 0:00:23]}  h5 {[%clk 0:01:34]} 24. f6+ {[%clk 0:00:13]}  gxf6 {[%clk 0:01:32]} 25. Rd7+ {[%clk 0:00:14]}  Ke8 {[%clk 0:01:26]} 26. Nc5 {[%clk 0:00:13]}  Bf3 {[%clk 0:01:13]} 27. R1d3 {[%clk 0:00:10]}  hxg4 {[%clk 0:01:11]} 28. hxg4 {[%clk 0:00:11]}  Bxg4 {[%clk 0:01:10]} 29. Rxb7 {[%clk 0:00:11]}  Rxc5 {[%clk 0:01:07]} 30. b4 {[%clk 0:00:11]}  Rc8 {[%clk 0:01:05]} 31. a4 {[%clk 0:00:11]}  Bf5 {[%clk 0:01:02]} 32. Re3 {[%clk 0:00:10]}  Rh3 {[%clk 0:00:59]} 33. Rxh3 {[%clk 0:00:10]}  Bxh3 {[%clk 0:01:00]} 34. a5 {[%clk 0:00:09]}  Rxc3 {[%clk 0:00:58]} 35. b5 {[%clk 0:00:10]}  Bc8 {[%clk 0:00:51]} 36. bxa6 {[%clk 0:00:08]}  Rc6 {[%clk 0:00:47]} 37. Rb8 {[%clk 0:00:07]}  Rxa6 {[%clk 0:00:46]} 38. Rxc8+ {[%clk 0:00:07]}  Ke7 {[%clk 0:00:47]} 39. Rc5 {[%clk 0:00:08]}  Kd6 {[%clk 0:00:47]} 40. Rb5 {[%clk 0:00:08]}  Kc6 {[%clk 0:00:47]} 41. Rb2 {[%clk 0:00:06]}  f5 {[%clk 0:00:44]} 42. Rc2+ {[%clk 0:00:02]}  Kb5 {[%clk 0:00:43]} 43. Re2 {[%clk 0:00:02]}  f6 {[%clk 0:00:43]} 44. Ra2 {[%clk 0:00:02]}  Rxa5 {[%clk 0:00:42]} 45. Rb2+ {[%clk 0:00:03]}  Kc5 {[%clk 0:00:42]} 46. Kf2 {[%clk 0:00:04]}  Kd5 {[%clk 0:00:42]} 47. Ke3 {[%clk 0:00:05]}  Ra3+ {[%clk 0:00:42]} 48. Ke2 {[%clk 0:00:05]}  f4 {[%clk 0:00:42]} 49. Rb5+ {[%clk 0:00:05]}  Ke4 {[%clk 0:00:42]} 50. Rb4+ {[%clk 0:00:06]}  Kf5 {[%clk 0:00:42]} 51. Kf2 {[%clk 0:00:07]}  Ra2+ {[%clk 0:00:41]} 52. Kf3 {[%clk 0:00:07]}  e4+ {[%clk 0:00:41]} 53. Rxe4 {[%clk 0:00:08]}  Ra3+ {[%clk 0:00:41]} 54. Re3 {[%clk 0:00:09]}  Rxe3+ {[%clk 0:00:41]} 55. Kf2 {[%clk 0:00:10]}  Ke4 {[%clk 0:00:42]} 0-1


[Site "https://www.chess.com"]

[Event "Titled Tuesday Blitz February 28 Early 2023"]
[White "Tymrakiewicz, Rafal"]
[Black "Fiorito, Joaquin"]
[WhiteFideId "1108832"]
[BlackFideId "180173"]
[WhiteElo "2151"]
[BlackElo "2157"]
[Result "1/2-1/2"]
[Round "05"]
[TimeControl "180+2"]
[Date "2023.02.28"]
[WhiteClock "0:00:07"]
[BlackClock "0:00:09"]

1. d4 {[%clk 0:03:00]}  Nf6 {[%clk 0:02:59]} 2. Bg5 {[%clk 0:02:59]}  Ne4 {[%clk 0:02:58]} 3. Bf4 {[%clk 0:02:58]}  d5 {[%clk 0:02:59]} 4. e3 {[%clk 0:02:58]}  c5 {[%clk 0:02:59]} 5. Bd3 {[%clk 0:02:58]}  Nf6 {[%clk 0:02:51]} 6. c3 {[%clk 0:02:56]}  Nc6 {[%clk 0:02:51]} 7. Nd2 {[%clk 0:02:55]}  Qb6 {[%clk 0:02:51]} 8. Rb1 {[%clk 0:02:53]}  c4 {[%clk 0:02:48]} 9. Bc2 {[%clk 0:02:53]}  Qa5 {[%clk 0:02:47]} 10. a3 {[%clk 0:02:49]}  b5 {[%clk 0:02:47]} 11. Ne2 {[%clk 0:02:38]}  g6 {[%clk 0:02:45]} 12. e4 {[%clk 0:02:35]}  Bg7 {[%clk 0:02:44]} 13. e5 {[%clk 0:02:32]}  Ng8 {[%clk 0:02:35]} 14. h3 {[%clk 0:02:19]}  Nh6 {[%clk 0:02:32]} 15. g4 {[%clk 0:02:19]}  O-O {[%clk 0:02:31]} 16. Nf3 {[%clk 0:02:08]}  f6 {[%clk 0:02:24]} 17. Qd2 {[%clk 0:01:56]}  Nf7 {[%clk 0:02:08]} 18. Qe3 {[%clk 0:01:38]}  Qb6 {[%clk 0:01:50]} 19. O-O {[%clk 0:01:20]}  fxe5 {[%clk 0:01:41]} 20. dxe5 {[%clk 0:01:06]}  Qxe3 {[%clk 0:01:39]} 21. Bxe3 {[%clk 0:01:05]}  Nfxe5 {[%clk 0:01:35]} 22. Nxe5 {[%clk 0:01:05]}  Nxe5 {[%clk 0:01:35]} 23. Nd4 {[%clk 0:01:05]}  Nf3+ {[%clk 0:01:16]} 24. Nxf3 {[%clk 0:01:01]}  Rxf3 {[%clk 0:01:17]} 25. Kg2 {[%clk 0:00:54]}  Rf7 {[%clk 0:01:16]} 26. f4 {[%clk 0:00:54]}  Bb7 {[%clk 0:01:13]} 27. Bd4 {[%clk 0:00:54]}  Raf8 {[%clk 0:01:11]} 28. f5 {[%clk 0:00:43]}  gxf5 {[%clk 0:00:59]} 29. Bxf5 {[%clk 0:00:31]}  Kh8 {[%clk 0:00:58]} 30. Be6 {[%clk 0:00:27]}  Rxf1 {[%clk 0:00:57]} 31. Rxf1 {[%clk 0:00:27]}  Rxf1 {[%clk 0:00:57]} 32. Kxf1 {[%clk 0:00:28]}  Bxd4 {[%clk 0:00:54]} 33. cxd4 {[%clk 0:00:28]}  Kg7 {[%clk 0:00:52]} 34. g5 {[%clk 0:00:28]}  Kg6 {[%clk 0:00:48]} 35. Bg8 {[%clk 0:00:21]}  Kxg5 {[%clk 0:00:40]} 36. Bxh7 {[%clk 0:00:18]}  Kf4 {[%clk 0:00:31]} 37. Kf2 {[%clk 0:00:18]}  Bc8 {[%clk 0:00:31]} 38. h4 {[%clk 0:00:15]}  Kg4 {[%clk 0:00:20]} 39. Bg8 {[%clk 0:00:14]}  Bb7 {[%clk 0:00:18]} 40. Ke3 {[%clk 0:00:15]}  Kxh4 {[%clk 0:00:12]} 41. Kf4 {[%clk 0:00:15]}  a5 {[%clk 0:00:11]} 42. Be6 {[%clk 0:00:12]}  b4 {[%clk 0:00:11]} 43. axb4 {[%clk 0:00:11]}  axb4 {[%clk 0:00:11]} 44. Bf5 {[%clk 0:00:12]}  Kh5 {[%clk 0:00:11]} 45. Ke5 {[%clk 0:00:12]}  Kh6 {[%clk 0:00:10]} 46. Bb1 {[%clk 0:00:07]}  Kg7 {[%clk 0:00:10]} 47. Ke6 {[%clk 0:00:07]}  Kf8 {[%clk 0:00:11]} 48. Kd7 {[%clk 0:00:08]}  Kf7 {[%clk 0:00:05]} 49. Kc7 {[%clk 0:00:07]}  Ba6 {[%clk 0:00:06]} 50. Kb6 {[%clk 0:00:06]}  Bc8 {[%clk 0:00:06]} 51. Kc5 {[%clk 0:00:06]}  c3 {[%clk 0:00:05]} 52. bxc3 {[%clk 0:00:06]}  bxc3 {[%clk 0:00:06]} 53. Kxd5 {[%clk 0:00:06]}  Be6+ {[%clk 0:00:05]} 54. Ke4 {[%clk 0:00:06]}  Bb3 {[%clk 0:00:06]} 55. Kd3 {[%clk 0:00:06]}  c2 {[%clk 0:00:03]} 56. Bxc2 {[%clk 0:00:06]}  Bd5 {[%clk 0:00:04]} 57. Bd1 {[%clk 0:00:05]}  e6 {[%clk 0:00:04]} 58. Ke3 {[%clk 0:00:05]}  Ke7 {[%clk 0:00:04]} 59. Bf3 {[%clk 0:00:05]}  Bc4 {[%clk 0:00:05]} 60. Be4 {[%clk 0:00:06]}  Kd6 {[%clk 0:00:05]} 61. Kf4 {[%clk 0:00:06]}  Bb3 {[%clk 0:00:06]} 62. Ke3 {[%clk 0:00:06]}  Ba2 {[%clk 0:00:06]} 63. Kf4 {[%clk 0:00:06]}  Bb3 {[%clk 0:00:06]} 64. Ke3 {[%clk 0:00:06]}  Ke7 {[%clk 0:00:07]} 65. Kf4 {[%clk 0:00:07]}  Kf6 {[%clk 0:00:07]} 66. Bb1 {[%clk 0:00:06]}  Bd5 {[%clk 0:00:07]} 67. Bc2 {[%clk 0:00:06]}  Bc4 {[%clk 0:00:07]} 68. Bb1 {[%clk 0:00:07]}  Bb3 {[%clk 0:00:08]} 69. Bd3 {[%clk 0:00:07]}  Ke7 {[%clk 0:00:08]} 70. Be4 {[%clk 0:00:07]}  Kd6 {[%clk 0:00:09]} 1/2-1/2


[Site "https://www.chess.com"]

[Event "Titled Tuesday Blitz February 28 Early 2023"]
[White "Arabidze, Meri"]
[Black "Grot, Blazej"]
[WhiteFideId "13604040"]
[BlackFideId "21835845"]
[WhiteElo "2405"]
[BlackElo "1823"]
[Result "1/2-1/2"]
[Round "05"]
[TimeControl "180+2"]
[Date "2023.02.28"]
[WhiteClock "0:00:44"]
[BlackClock "0:01:38"]

1. d4 {[%clk 0:03:00]}  Nf6 {[%clk 0:02:59]} 2. Nf3 {[%clk 0:03:01]}  g6 {[%clk 0:02:54]} 3. g3 {[%clk 0:03:01]}  Bg7 {[%clk 0:02:54]} 4. Bg2 {[%clk 0:03:02]}  d5 {[%clk 0:02:48]} 5. O-O {[%clk 0:03:03]}  O-O {[%clk 0:02:45]} 6. b3 {[%clk 0:03:04]}  b6 {[%clk 0:02:44]} 7. Bb2 {[%clk 0:03:04]}  Bb7 {[%clk 0:02:40]} 8. Nbd2 {[%clk 0:03:03]}  Nbd7 {[%clk 0:02:40]} 9. c4 {[%clk 0:03:03]}  e6 {[%clk 0:02:35]} 10. cxd5 {[%clk 0:02:50]}  exd5 {[%clk 0:02:34]} 11. Rc1 {[%clk 0:02:43]}  c5 {[%clk 0:02:29]} 12. dxc5 {[%clk 0:02:43]}  Nxc5 {[%clk 0:02:28]} 13. Nd4 {[%clk 0:02:37]}  a5 {[%clk 0:02:24]} 14. N2f3 {[%clk 0:02:37]}  Nfe4 {[%clk 0:02:23]} 15. Rc2 {[%clk 0:02:31]}  Rc8 {[%clk 0:02:22]} 16. Qa1 {[%clk 0:02:27]}  Qd7 {[%clk 0:02:18]} 17. Rfc1 {[%clk 0:02:25]}  Rfe8 {[%clk 0:02:10]} 18. Bf1 {[%clk 0:02:12]}  h5 {[%clk 0:02:08]} 19. e3 {[%clk 0:02:11]}  Ba6 {[%clk 0:02:04]} 20. Bxa6 {[%clk 0:02:06]}  Nxa6 {[%clk 0:02:04]} 21. Rxc8 {[%clk 0:02:03]}  Rxc8 {[%clk 0:02:05]} 22. Rxc8+ {[%clk 0:01:57]}  Qxc8 {[%clk 0:02:06]} 23. Qf1 {[%clk 0:01:53]}  Nb4 {[%clk 0:02:05]} 24. a3 {[%clk 0:01:46]}  Nc6 {[%clk 0:02:01]} 25. Qc1 {[%clk 0:01:20]}  Ne7 {[%clk 0:01:57]} 26. Qxc8+ {[%clk 0:01:17]}  Nxc8 {[%clk 0:01:58]} 27. Kf1 {[%clk 0:01:08]}  Ncd6 {[%clk 0:01:57]} 28. Ke2 {[%clk 0:01:08]}  Kf8 {[%clk 0:01:54]} 29. Ne1 {[%clk 0:00:58]}  Nc5 {[%clk 0:01:50]} 30. Nd3 {[%clk 0:00:52]}  Ke8 {[%clk 0:01:45]} 31. f3 {[%clk 0:00:44]}  Kd7 {[%clk 0:01:38]} 1/2-1/2


[Site "https://www.chess.com"]

[Event "Titled Tuesday Blitz February 28 Early 2023"]
[White "Mamedov, Edgar"]
[Black "Balint, Vilmos"]
[WhiteFideId "13739980"]
[BlackFideId "718050"]
[WhiteElo "2330"]
[BlackElo "2034"]
[Result "1-0"]
[Round "05"]
[TimeControl "180+2"]
[Date "2023.02.28"]
[WhiteClock "0:01:05"]
[BlackClock "0:00:44"]

1. d4 {[%clk 0:02:59]}  Nf6 {[%clk 0:02:59]} 2. Bg5 {[%clk 0:02:59]}  d5 {[%clk 0:02:58]} 3. e3 {[%clk 0:02:53]}  Nbd7 {[%clk 0:02:57]} 4. Nf3 {[%clk 0:02:48]}  e6 {[%clk 0:02:56]} 5. Nbd2 {[%clk 0:02:46]}  Be7 {[%clk 0:02:57]} 6. Bd3 {[%clk 0:02:45]}  h6 {[%clk 0:02:56]} 7. Bxf6 {[%clk 0:02:44]}  Nxf6 {[%clk 0:02:56]} 8. e4 {[%clk 0:02:44]}  dxe4 {[%clk 0:02:56]} 9. Nxe4 {[%clk 0:02:43]}  Nxe4 {[%clk 0:02:56]} 10. Bxe4 {[%clk 0:02:43]}  Bf6 {[%clk 0:02:53]} 11. Qe2 {[%clk 0:02:40]}  O-O {[%clk 0:02:52]} 12. O-O-O {[%clk 0:02:39]}  c6 {[%clk 0:02:53]} 13. h4 {[%clk 0:02:36]}  Qa5 {[%clk 0:02:53]} 14. Kb1 {[%clk 0:02:34]}  Bd7 {[%clk 0:02:48]} 15. g4 {[%clk 0:02:32]}  c5 {[%clk 0:02:12]} 16. g5 {[%clk 0:02:31]}  Bxd4 {[%clk 0:02:07]} 17. gxh6 {[%clk 0:02:22]}  Bb5 {[%clk 0:01:53]} 18. Bd3 {[%clk 0:02:17]}  Bxd3 {[%clk 0:01:41]} 19. Rxd3 {[%clk 0:02:15]}  g6 {[%clk 0:01:40]} 20. h5 {[%clk 0:02:13]}  Kh7 {[%clk 0:01:35]} 21. hxg6+ {[%clk 0:02:10]}  fxg6 {[%clk 0:01:36]} 22. c3 {[%clk 0:02:09]}  Bf6 {[%clk 0:01:31]} 23. Rd7+ {[%clk 0:02:04]}  Kh8 {[%clk 0:01:30]} 24. Qe4 {[%clk 0:01:55]}  Qb5 {[%clk 0:01:20]} 25. Rxb7 {[%clk 0:01:51]}  Qe8 {[%clk 0:01:20]} 26. Rd1 {[%clk 0:01:45]}  Rb8 {[%clk 0:01:20]} 27. Rdd7 {[%clk 0:01:40]}  Rxb7 {[%clk 0:00:57]} 28. Qxb7 {[%clk 0:01:36]}  g5 {[%clk 0:00:56]} 29. Rh7+ {[%clk 0:01:29]}  Kg8 {[%clk 0:00:56]} 30. Rg7+ {[%clk 0:01:26]}  Kh8 {[%clk 0:00:56]} 31. Nxg5 {[%clk 0:01:20]}  Qh5 {[%clk 0:00:50]} 32. Rh7+ {[%clk 0:01:07]}  Kg8 {[%clk 0:00:50]} 33. Rh8+ {[%clk 0:01:06]}  Bxh8 {[%clk 0:00:44]} 34. Qh7# {[%clk 0:01:05]} 1-0


[Site "https://www.chess.com"]

[Event "Titled Tuesday Blitz February 28 Early 2023"]
[White "Sai Han Thiha"]
[Black "Dinu, Dumitru-Daniel"]
[WhiteFideId "13012290"]
[BlackFideId "1208403"]
[WhiteElo "1954"]
[BlackElo "2240"]
[Result "0-1"]
[Round "05"]
[TimeControl "180+2"]
[Date "2023.02.28"]
[WhiteClock "0:00:01"]
[BlackClock "0:00:04"]

1. d4 {[%clk 0:03:00]}  Nf6 {[%clk 0:02:32]} 2. c4 {[%clk 0:03:01]}  e6 {[%clk 0:02:32]} 3. Nf3 {[%clk 0:03:01]}  b6 {[%clk 0:02:32]} 4. g3 {[%clk 0:03:01]}  Bb7 {[%clk 0:02:32]} 5. Bg2 {[%clk 0:03:01]}  Bb4+ {[%clk 0:02:32]} 6. Bd2 {[%clk 0:03:01]}  a5 {[%clk 0:02:31]} 7. O-O {[%clk 0:02:58]}  O-O {[%clk 0:02:31]} 8. Nc3 {[%clk 0:02:49]}  Bxc3 {[%clk 0:02:31]} 9. Bxc3 {[%clk 0:02:50]}  Ne4 {[%clk 0:02:31]} 10. Be1 {[%clk 0:02:50]}  f5 {[%clk 0:02:31]} 11. d5 {[%clk 0:02:26]}  Qe7 {[%clk 0:02:27]} 12. Nd4 {[%clk 0:02:09]}  Na6 {[%clk 0:02:10]} 13. Nb5 {[%clk 0:01:46]}  exd5 {[%clk 0:02:08]} 14. cxd5 {[%clk 0:01:46]}  Qc5 {[%clk 0:02:05]} 15. Nc3 {[%clk 0:01:43]}  Rae8 {[%clk 0:02:00]} 16. Rc1 {[%clk 0:01:42]}  Qe7 {[%clk 0:01:54]} 17. e3 {[%clk 0:01:16]}  Nac5 {[%clk 0:01:51]} 18. Nb5 {[%clk 0:01:16]}  d6 {[%clk 0:01:48]} 19. f3 {[%clk 0:01:05]}  Nf6 {[%clk 0:01:45]} 20. Bf2 {[%clk 0:01:06]}  Nxd5 {[%clk 0:01:43]} 21. Re1 {[%clk 0:01:03]}  Nf6 {[%clk 0:01:39]} 22. a3 {[%clk 0:01:02]}  Ba6 {[%clk 0:01:36]} 23. Nd4 {[%clk 0:01:02]}  Nd3 {[%clk 0:01:34]} 24. Nxf5 {[%clk 0:01:00]}  Qd7 {[%clk 0:01:30]} 25. Bh3 {[%clk 0:00:56]}  Qd8 {[%clk 0:01:17]} 26. e4 {[%clk 0:00:41]}  Nxe1 {[%clk 0:01:08]} 27. Bxe1 {[%clk 0:00:41]}  Bc8 {[%clk 0:01:06]} 28. Bc3 {[%clk 0:00:38]}  Bxf5 {[%clk 0:00:52]} 29. Bxf5 {[%clk 0:00:39]}  Qe7 {[%clk 0:00:51]} 30. Qb3+ {[%clk 0:00:38]}  Kh8 {[%clk 0:00:50]} 31. Bd4 {[%clk 0:00:36]}  h6 {[%clk 0:00:28]} 32. Kg2 {[%clk 0:00:36]}  Qf7 {[%clk 0:00:23]} 33. Qc3 {[%clk 0:00:35]}  c5 {[%clk 0:00:20]} 34. Bf2 {[%clk 0:00:35]}  d5 {[%clk 0:00:20]} 35. e5 {[%clk 0:00:23]}  Ng8 {[%clk 0:00:17]} 36. g4 {[%clk 0:00:18]}  Ne7 {[%clk 0:00:17]} 37. e6 {[%clk 0:00:17]}  Qf6 {[%clk 0:00:17]} 38. Qxf6 {[%clk 0:00:17]}  Rxf6 {[%clk 0:00:17]} 39. Bh4 {[%clk 0:00:18]}  g5 {[%clk 0:00:15]} 40. Bg3 {[%clk 0:00:15]}  Nxf5 {[%clk 0:00:14]} 41. gxf5 {[%clk 0:00:06]}  Rxf5 {[%clk 0:00:14]} 42. Re1 {[%clk 0:00:07]}  Kg7 {[%clk 0:00:14]} 43. Bc7 {[%clk 0:00:07]}  Kf6 {[%clk 0:00:12]} 44. e7 {[%clk 0:00:05]}  Kf7 {[%clk 0:00:11]} 45. Bd8 {[%clk 0:00:04]}  Rf6 {[%clk 0:00:10]} 46. Kg3 {[%clk 0:00:04]}  Re6 {[%clk 0:00:10]} 47. Rd1 {[%clk 0:00:05]}  d4 {[%clk 0:00:10]} 48. h4 {[%clk 0:00:06]}  R8xe7 {[%clk 0:00:08]} 49. Bxe7 {[%clk 0:00:06]}  Kxe7 {[%clk 0:00:09]} 50. hxg5 {[%clk 0:00:07]}  hxg5 {[%clk 0:00:09]} 51. Kg4 {[%clk 0:00:08]}  Kf6 {[%clk 0:00:10]} 52. Rh1 {[%clk 0:00:07]}  Kg6 {[%clk 0:00:09]} 53. Rh8 {[%clk 0:00:07]}  Re2 {[%clk 0:00:09]} 54. b3 {[%clk 0:00:04]}  Rg2+ {[%clk 0:00:09]} 55. Kh3 {[%clk 0:00:03]}  Rb2 {[%clk 0:00:09]} 56. Rg8+ {[%clk 0:00:02]}  Kf5 {[%clk 0:00:09]} 57. Kg3 {[%clk 0:00:01]}  Rxb3 {[%clk 0:00:09]} 58. a4 {[%clk 0:00:02]}  d3 {[%clk 0:00:09]} 59. Rf8+ {[%clk 0:00:02]}  Ke5 {[%clk 0:00:09]} 60. Kg4 {[%clk 0:00:02]}  d2 {[%clk 0:00:09]} 61. Rd8 {[%clk 0:00:02]}  Rb2 {[%clk 0:00:08]} 62. Kxg5 {[%clk 0:00:02]}  c4 {[%clk 0:00:09]} 63. f4+ {[%clk 0:00:03]}  Ke4 {[%clk 0:00:09]} 64. f5 {[%clk 0:00:04]}  c3 {[%clk 0:00:09]} 65. f6 {[%clk 0:00:04]}  c2 {[%clk 0:00:09]} 66. f7 {[%clk 0:00:04]}  d1=Q {[%clk 0:00:08]} 67. Re8+ {[%clk 0:00:04]}  Kd5 {[%clk 0:00:06]} 68. Rd8+ {[%clk 0:00:05]}  Kc5 {[%clk 0:00:07]} 69. f8=Q+ {[%clk 0:00:04]}  Kc4 {[%clk 0:00:06]} 70. Qf4+ {[%clk 0:00:04]}  Kb3 {[%clk 0:00:05]} 71. Qe3+ {[%clk 0:00:01]}  Ka2 {[%clk 0:00:04]} 72. Qe6+ {[%clk 0:00:02]}  Kb1 {[%clk 0:00:04]} 73. Rc8 {[%clk 0:00:01]}  c1=Q+ {[%clk 0:00:04]} 0-1


[Site "https://www.chess.com"]

[Event "Titled Tuesday Blitz February 28 Early 2023"]
[White "Williams, Simon K"]
[Black "Miszler, Levente"]
[WhiteFideId "404454"]
[BlackFideId "763276"]
[WhiteElo "2468"]
[BlackElo "2176"]
[Result "1-0"]
[Round "05"]
[TimeControl "180+2"]
[Date "2023.02.28"]
[WhiteClock "0:00:33"]
[BlackClock "0:00:25"]

1. e4 {[%clk 0:03:00]}  e6 {[%clk 0:03:00]} 2. d4 {[%clk 0:02:56]}  d5 {[%clk 0:03:00]} 3. e5 {[%clk 0:02:56]}  f6 {[%clk 0:02:58]} 4. Bd3 {[%clk 0:02:52]}  c5 {[%clk 0:02:52]} 5. Qh5+ {[%clk 0:02:45]}  Ke7 {[%clk 0:02:50]} 6. c3 {[%clk 0:02:39]}  Bd7 {[%clk 0:02:44]} 7. Nf3 {[%clk 0:02:32]}  Be8 {[%clk 0:02:41]} 8. Qh4 {[%clk 0:02:31]}  Nc6 {[%clk 0:02:35]} 9. O-O {[%clk 0:02:28]}  g6 {[%clk 0:02:28]} 10. exf6+ {[%clk 0:01:58]}  Nxf6 {[%clk 0:02:29]} 11. Re1 {[%clk 0:01:57]}  Bg7 {[%clk 0:02:20]} 12. Bh6 {[%clk 0:01:44]}  Bxh6 {[%clk 0:02:03]} 13. Qxh6 {[%clk 0:01:44]}  Bf7 {[%clk 0:02:04]} 14. Nbd2 {[%clk 0:01:31]}  Qf8 {[%clk 0:01:52]} 15. Qh4 {[%clk 0:01:31]}  h6 {[%clk 0:01:52]} 16. dxc5 {[%clk 0:01:07]}  g5 {[%clk 0:01:47]} 17. Qg3 {[%clk 0:01:03]}  Qb8 {[%clk 0:01:44]} 18. Ne5 {[%clk 0:00:58]}  Nxe5 {[%clk 0:01:30]} 19. Rxe5 {[%clk 0:00:50]}  Nd7 {[%clk 0:01:24]} 20. Nf3 {[%clk 0:00:48]}  Nxe5 {[%clk 0:01:24]} 21. Nxe5 {[%clk 0:00:48]}  Qc8 {[%clk 0:00:55]} 22. b4 {[%clk 0:00:45]}  a5 {[%clk 0:00:52]} 23. f4 {[%clk 0:00:39]}  axb4 {[%clk 0:00:46]} 24. cxb4 {[%clk 0:00:39]}  Ra3 {[%clk 0:00:41]} 25. fxg5 {[%clk 0:00:39]}  Qg8 {[%clk 0:00:36]} 26. g6 {[%clk 0:00:36]}  Be8 {[%clk 0:00:31]} 27. Qh4+ {[%clk 0:00:34]}  Kf8 {[%clk 0:00:25]} 28. Rf1+ {[%clk 0:00:33]} 1-0


[Site "https://www.chess.com"]

[Event "Titled Tuesday Blitz February 28 Early 2023"]
[White "Koellner, Ruben Gideon"]
[Black "Llanos, Guillermo"]
[WhiteFideId "12993093"]
[BlackFideId "100358"]
[WhiteElo "2303"]
[BlackElo "2225"]
[Result "1-0"]
[Round "05"]
[TimeControl "180+2"]
[Date "2023.02.28"]
[WhiteClock "0:00:09"]
[BlackClock "0:00:50"]

1. d4 {[%clk 0:03:00]}  d5 {[%clk 0:02:57]} 2. Nf3 {[%clk 0:02:44]}  Nf6 {[%clk 0:02:56]} 3. e3 {[%clk 0:02:30]}  e6 {[%clk 0:02:53]} 4. Nbd2 {[%clk 0:02:16]}  b6 {[%clk 0:02:51]} 5. Bd3 {[%clk 0:01:43]}  Bb7 {[%clk 0:02:50]} 6. Ne5 {[%clk 0:01:34]}  Nbd7 {[%clk 0:02:49]} 7. f4 {[%clk 0:01:34]}  Be7 {[%clk 0:02:26]} 8. Qf3 {[%clk 0:01:31]}  c5 {[%clk 0:02:19]} 9. c3 {[%clk 0:01:31]}  Qc7 {[%clk 0:02:08]} 10. O-O {[%clk 0:01:25]}  O-O {[%clk 0:01:54]} 11. g4 {[%clk 0:01:24]}  cxd4 {[%clk 0:01:41]} 12. exd4 {[%clk 0:01:23]}  g6 {[%clk 0:01:39]} 13. g5 {[%clk 0:01:20]}  Nh5 {[%clk 0:01:37]} 14. h4 {[%clk 0:01:17]}  a5 {[%clk 0:01:17]} 15. Re1 {[%clk 0:01:06]}  Ba6 {[%clk 0:01:06]} 16. Bxa6 {[%clk 0:00:48]}  Rxa6 {[%clk 0:01:06]} 17. a4 {[%clk 0:00:49]}  f6 {[%clk 0:00:55]} 18. Nxd7 {[%clk 0:00:37]}  Qxd7 {[%clk 0:00:54]} 19. Qe2 {[%clk 0:00:33]}  Nxf4 {[%clk 0:00:50]} 20. Qxa6 {[%clk 0:00:33]}  e5 {[%clk 0:00:50]} 21. Re2 {[%clk 0:00:09]} 1-0


[Site "https://www.chess.com"]